bitfinex-derivatives/quotes_SOLF0:USTF0_20251006
["timestamp","ask_amount","ask_price","bid_price","bid_amount"]
[1759726562558,7.92,230.83,230.76,7.79188358]
[1759726562953,7.92,230.83,230.77,7.79188358]
[1759726563456,7.92,230.83,230.73,5.27]
[1759726563656,7.92,230.83,230.77,7.79188358]
[1759726564053,7.92,230.81,230.73,5.27]
[1759726564260,7.92,230.81,230.76,7.79188358]
[1759726564850,7.92,230.82,230.77,7.79188358]
[1759726565260,7.92,230.82,230.78,7.79188358]
[1759726565459,1.95334227,230.83,230.78,7.79188358]
[1759726565659,7.92,230.82,230.75,5.27]
[1759726565961,7.92,230.82,230.78,7.79188358]
[1759726566160,315.5,230.85,230.78,7.79188358]
[1759726566360,109.36,230.82,230.76,5.27]
[1759726566654,7.92,230.84,230.78,7.79188358]
[1759726566861,7.92,230.82,230.79,7.79188358]
[1759726567156,109.32,230.83,230.79,7.79188358]
[1759726567356,7.92,230.82,230.76,5.27]
[1759726567562,7.92,230.82,230.79,7.79188358]
[1759726567764,109.32,230.83,230.79,7.79188358]
[1759726567958,11.8176,230.82,230.7,5.27]
[1759726568156,11.8176,230.82,230.78,7.79188358]
[1759726568362,11.8176,230.82,230.7,5.27]
[1759726568559,11.8176,230.82,230.78,7.79188358]
[1759726568755,7.92,230.79,230.77,7.79188358]
[1759726568961,7.92,230.77,230.66,5.27]
[1759726569156,1.95334227,230.74,230.68,7.79188358]
[1759726569363,7.92,230.72,230.68,7.79188358]
[1759726569662,3.8993,230.72,230.68,7.79188358]
[1759726569857,7.92,230.72,230.63,5.27]
[1759726570064,109.3,230.73,230.68,7.79188358]
[1759726570663,7.92,230.72,230.68,7.79188358]
[1759726571059,109.3,230.73,230.68,7.79188358]
[1759726571265,7.92,230.72,230.68,7.79188358]
[1759726571658,3.8996,230.71,230.68,7.79188358]
[1759726572362,7.92,230.7,230.68,7.79188358]
[1759726573061,7.92,230.78,230.69,13.06188358]
[1759726573257,7.92,230.76,230.73,7.79188358]
[1759726573766,7.92,230.76,230.69,5.27]
[1759726573767,9.87334227,230.8,230.69,5.27]
[1759726573967,109.2,230.79,230.65,5.27]
[1759726574365,7.92,230.78,230.75,7.79188358]
[1759726574564,113.0981,230.79,230.75,7.79188358]
[1759726574765,7.92,230.78,230.7,5.27]
[1759726574963,7.92,230.78,230.74,7.79188358]
[1759726575162,113.0981,230.79,230.74,7.79188358]
[1759726575468,7.92,230.78,230.74,7.79188358]
[1759726575961,7.92,230.78,230.75,7.79188358]
[1759726576363,7.92,230.78,230.7,5.27]
[1759726576564,7.92,230.78,230.75,7.79188358]
[1759726576964,7.92,230.78,230.7,5.27]
[1759726577263,11.8177,230.82,230.76,7.79188358]
[1759726577569,117.12,230.79,230.76,7.79188358]
[1759726577765,117.12,230.79,230.75,5.27]
[1759726577960,117.12,230.79,230.76,7.79188358]
[1759726578368,117.12,230.79,230.73,5.27]
[1759726578566,117.12,230.79,230.76,7.79188358]
[1759726579066,117.12,230.79,230.73,5.27]
[1759726579270,117.12,230.79,230.76,7.79188358]
[1759726579466,117.12,230.79,230.73,5.27]
[1759726579665,117.12,230.79,230.76,7.79188358]
[1759726579860,117.12,230.79,230.77,7.79188358]
[1759726580468,117.12,230.79,230.73,5.27]
[1759726580669,117.12,230.79,230.77,7.79188358]
[1759726580868,117.12,230.79,230.73,5.27]
[1759726581069,7.46,230.78,230.77,7.79188358]
[1759726581470,7.46,230.78,230.73,5.27]
[1759726581667,7.46,230.78,230.77,7.79188358]
[1759726581867,7.46,230.78,230.72,5.27]
[1759726582071,7.46,230.78,230.77,7.79188358]
[1759726582469,7.46,230.78,230.72,5.27]
[1759726582667,7.46,230.78,230.77,7.79188358]
[1759726582866,7.46,230.78,230.72,5.27]
[1759726583068,116.34,230.78,230.77,7.79188358]
[1759726583466,13.29245468,230.82,230.73,3.8991]
[1759726583775,108.86,230.81,230.77,13.06188358]
[1759726583965,7.46,230.8,230.77,7.79188358]
[1759726584163,7.46,230.8,230.74,5.27]
[1759726584370,7.46,230.8,230.77,7.79188358]
[1759726584569,7.46,230.8,230.74,5.27]
[1759726584870,7.46,230.8,230.77,7.79188358]
[1759726585065,7.46,230.8,230.74,5.27]
[1759726585269,7.46,230.8,230.77,7.79188358]
[1759726585469,7.46,230.8,230.74,5.27]
[1759726585675,7.46,230.8,230.77,7.79188358]
[1759726585874,7.46,230.8,230.74,5.27]
[1759726586070,7.46,230.8,230.77,7.79188358]
[1759726586573,7.46,230.8,230.74,5.27]
[1759726586776,7.46,230.8,230.77,7.79188358]
[1759726586974,7.46,230.8,230.74,5.27]
[1759726587175,108.86,230.81,230.77,7.79188358]
[1759726587475,7.46,230.8,230.77,7.79188358]
[1759726587676,7.46,230.8,230.74,5.27]
[1759726587876,7.46,230.8,230.77,7.79188358]
[1759726588173,7.46,230.8,230.74,5.27]
[1759726588375,5.83245468,230.82,230.74,3.8988]
[1759726588569,59.6,230.81,230.78,5.27]
[1759726588769,59.6,230.81,230.8,7.79188358]
[1759726589165,59.6,230.81,230.78,5.27]
[1759726589374,59.6,230.81,230.8,7.79188358]
[1759726589878,67.06,230.81,230.8,7.79188358]
[1759726590070,67.06,230.81,230.78,5.27]
[1759726590270,67.06,230.81,230.8,7.79188358]
[1759726590470,67.06,230.81,230.78,5.27]
[1759726590770,67.06,230.81,230.8,7.79188358]
[1759726590966,67.06,230.81,230.75,5.27]
[1759726591271,67.06,230.81,230.8,7.79188358]
[1759726591570,67.06,230.81,230.75,5.27]
[1759726591772,67.06,230.81,230.8,7.79188358]
[1759726591970,67.06,230.81,230.74,3.8988]
[1759726592165,59.6,230.81,230.78,7.79188358]
[1759726592872,7.46,230.8,230.78,7.79188358]
[1759726594680,59.6,230.81,230.78,7.79188358]
[1759726594878,7.32,230.8,230.78,7.79188358]
[1759726599885,7.32,230.8,230.74,5.27]
[1759726600086,7.32,230.8,230.78,7.79188358]
[1759726601486,59.6,230.81,230.78,7.79188358]
[1759726601686,59.6,230.81,230.78,13.05188358]
[1759726601984,66.92,230.81,230.78,13.05188358]
[1759726602286,59.6,230.81,230.78,7.79188358]
[1759726602481,7.32,230.8,230.78,7.79188358]
[1759726603881,59.6,230.81,230.78,5.26]
[1759726604086,66.92,230.81,230.79,7.79188358]
[1759726604486,333.20126166,230.91,230.8,7.79188358]
[1759726604487,7.32,230.86,230.8,7.79188358]
[1759726604885,1.95334227,230.87,230.8,7.79188358]
[1759726604886,3.8972,230.85,230.8,7.79188358]
[1759726605386,7.32,230.84,230.8,7.79188358]
[1759726605687,3.8972,230.85,230.8,7.79188358]
[1759726605887,3.8972,230.85,230.81,7.79188358]
[1759726606087,7.32,230.84,230.81,7.79188358]
[1759726606385,7.32,230.84,230.75,9.1586]
[1759726606581,3.8972,230.85,230.81,7.79188358]
[1759726606978,7.32,230.84,230.76,3.8984]
[1759726607177,3.8972,230.85,230.81,7.79188358]
[1759726607388,7.32,230.84,230.82,7.79188358]
[1759726607889,7.32,230.84,230.77,5.26]
[1759726608089,7.32,230.84,230.82,7.79188358]
[1759726608590,7.32,230.84,230.83,7.79188358]
[1759726608889,7.32,230.84,230.82,7.79188358]
[1759726609089,5.85014227,230.87,230.82,7.79188358]
[1759726609090,7.78,230.86,230.83,7.79188358]
[1759726609291,112.0168,230.87,230.83,7.79188358]
[1759726609685,7.78,230.86,230.83,7.79188358]
[1759726610086,112.0168,230.87,230.83,7.79188358]
[1759726610290,7.78,230.86,230.83,7.79188358]
[1759726610895,7.78,230.86,230.84,7.79188358]
[1759726611293,7.78,230.86,230.82,5.25]
[1759726611492,111.9368,230.87,230.84,7.79188358]
[1759726611893,7.78,230.86,230.84,7.79188358]
[1759726612189,111.9368,230.87,230.82,5.25]
[1759726612395,7.78,230.86,230.84,7.79188358]
[1759726612596,111.9368,230.87,230.84,7.79188358]
[1759726612796,7.78,230.85,230.82,5.25]
[1759726612993,7.78,230.85,230.84,7.79188358]
[1759726613593,11.6772,230.85,230.79,5.25]
[1759726613795,11.6772,230.85,230.84,7.79188358]
[1759726614097,11.6772,230.85,230.79,5.25]
[1759726614098,7.78,230.84,230.83,7.79188358]
[1759726620701,3.8978,230.81,230.75,5.25]
[1759726621001,7.78,230.8,230.78,7.79188358]
[1759726621201,112.90705819,230.81,230.78,7.79188358]
[1759726621403,7.78,230.8,230.78,7.79188358]
[1759726621997,1.24925819,230.87,230.79,13.04188358]
[1759726622196,107.74,230.86,230.81,7.79188358]
[1759726622396,107.74,230.86,230.81,13.04188358]
[1759726622703,107.76,230.85,230.8,3.8979]
[1759726623004,107.76,230.85,230.83,7.79188358]
[1759726623198,115.54,230.85,230.83,7.79188358]
[1759726623501,107.74,230.85,230.84,7.79188358]
[1759726623893,107.74,230.85,230.83,5.25]
[1759726624093,107.74,230.85,230.84,7.79188358]
[1759726624298,107.74,230.85,230.83,5.25]
[1759726624504,107.74,230.85,230.84,7.79188358]
[1759726624706,115.52,230.85,230.83,5.25]
[1759726624906,115.52,230.85,230.84,7.79188358]
[1759726625403,115.52,230.85,230.83,5.25]
[1759726625603,115.52,230.85,230.84,7.79188358]
[1759726625805,115.52,230.85,230.83,5.25]
[1759726625806,115.44,230.85,230.83,5.25]
[1759726626005,115.44,230.85,230.84,7.79188358]
[1759726626203,115.44,230.85,230.83,5.25]
[1759726626403,107.66,230.85,230.84,7.79188358]
[1759726626599,115.44,230.85,230.84,7.79188358]
[1759726626801,115.44,230.85,230.79,3.8979]
[1759726627195,115.44,230.85,230.83,7.79188358]
[1759726627401,7.78,230.84,230.83,7.79188358]
[1759726627601,7.78,230.84,230.77,5.25]
[1759726627805,7.78,230.84,230.83,7.79188358]
[1759726628306,7.78,230.84,230.77,5.25]
[1759726628506,7.78,230.84,230.83,7.79188358]
[1759726629008,7.78,230.84,230.77,9.1483]
[1759726629305,7.78,230.84,230.83,7.79188358]
[1759726629507,7.78,230.84,230.77,9.1483]
[1759726629802,7.78,230.84,230.83,7.79188358]
[1759726630005,7.78,230.84,230.77,9.1483]
[1759726630207,107.66,230.85,230.82,7.79188358]
[1759726630406,7.78,230.84,230.82,7.79188358]
[1759726630607,7.78,230.85,230.82,7.79188358]
[1759726630808,7.78,230.83,230.82,7.79188358]
[1759726631008,7.78,230.83,230.77,9.1483]
[1759726631308,7.78,230.83,230.82,7.79188358]
[1759726631509,107.54,230.84,230.82,7.79188358]
[1759726631705,107.54,230.84,230.83,7.79188358]
[1759726631911,107.54,230.84,230.82,7.79188358]
[1759726632109,7.78,230.83,230.82,7.79188358]
[1759726632410,107.54,230.84,230.79,5.25]
[1759726632613,7.78,230.83,230.82,7.79188358]
[1759726632815,7.78,230.83,230.77,5.25]
[1759726633311,7.78,230.83,230.81,7.79188358]
[1759726634414,107.54,230.84,230.81,7.79188358]
[1759726634811,7.78,230.83,230.81,7.79188358]
[1759726635308,107.54,230.84,230.81,7.79188358]
[1759726635514,7.78,230.82,230.81,7.79188358]
[1759726637117,107.4,230.83,230.81,7.79188358]
[1759726637517,115.18,230.83,230.81,7.79188358]
[1759726639317,7.53,230.85,230.81,7.79188358]
[1759726639515,107.28,230.84,230.82,7.79188358]
[1759726639714,107.28,230.84,230.81,5.25]
[1759726639914,107.28,230.84,230.82,7.79188358]
[1759726640119,107.28,230.84,230.81,5.25]
[1759726640321,107.28,230.84,230.82,7.79188358]
[1759726640618,107.28,230.84,230.81,5.25]
[1759726640814,107.28,230.84,230.82,7.79188358]
[1759726641217,107.28,230.84,230.81,5.25]
[1759726641415,107.26,230.83,230.82,13.04188358]
[1759726641611,7.53,230.85,230.82,13.04188358]
[1759726641920,114.25,230.84,230.82,5.25]
[1759726642123,7.53,230.83,230.8,5.25]
[1759726642320,7.53,230.83,230.82,7.79188358]
[1759726642519,114.25,230.84,230.77,9.1484]
[1759726642723,7.53,230.83,230.82,7.79188358]
[1759726643215,7.53,230.83,230.77,9.1484]
[1759726643421,7.53,230.83,230.82,7.79188358]
[1759726643622,106.72,230.84,230.82,7.79188358]
[1759726643818,114.25,230.84,230.8,5.25]
[1759726644024,7.53,230.83,230.82,7.79188358]
[1759726644324,7.53,230.83,230.8,5.25]
[1759726644521,8.71293335,230.93,230.83,5.25]
[1759726644822,114.79,230.92,230.86,7.79188358]
[1759726645219,114.79,230.92,230.83,5.25]
[1759726645418,114.79,230.92,230.86,7.79188358]
[1759726645818,114.79,230.92,230.83,5.25]
[1759726646014,114.79,230.92,230.86,7.79188358]
[1759726646219,114.79,230.92,230.83,5.25]
[1759726646521,114.79,230.92,230.86,7.79188358]
[1759726646917,114.79,230.92,230.83,9.1472]
[1759726647118,114.79,230.92,230.86,7.79188358]
[1759726647318,114.79,230.92,230.83,9.1472]
[1759726647521,118.686,230.92,230.86,7.79188358]
[1759726647913,114.79,230.92,230.86,7.79188358]
[1759726648113,11.4265,230.89,230.8,3.8978]
[1759726648314,8.77925819,230.87,230.75,5.25]
[1759726648620,7.53,230.83,230.82,7.79188358]
[1759726649120,7.53,230.83,230.75,18.08345005]
[1759726649421,7.53,230.83,230.82,7.79188358]
[1759726649615,114.79,230.83,230.82,7.79188358]
[1759726649822,114.79,230.83,230.77,9.1483]
[1759726650022,114.79,230.83,230.82,7.79188358]
[1759726650217,114.79,230.83,230.77,9.1483]
[1759726650417,114.79,230.83,230.82,7.79188358]
[1759726650911,114.79,230.83,230.77,9.1483]
[1759726651219,114.79,230.83,230.82,7.79188358]
[1759726651417,114.79,230.83,230.77,9.1483]
[1759726651618,114.79,230.83,230.82,7.79188358]
[1759726651919,114.79,230.83,230.77,9.1483]
[1759726652123,114.79,230.83,230.82,7.79188358]
[1759726652315,114.79,230.83,230.77,9.1483]
[1759726652518,114.79,230.83,230.82,7.79188358]
[1759726652712,114.79,230.83,230.77,9.1483]
[1759726652913,114.79,230.83,230.82,7.79188358]
[1759726653721,114.79,230.83,230.79,5.26]
[1759726654122,114.79,230.83,230.81,7.79188358]
[1759726654827,7.85,230.86,230.82,7.79188358]
[1759726655017,107.26,230.85,230.83,7.79188358]
[1759726655224,115.11,230.85,230.83,7.79188358]
[1759726655422,7.85,230.84,230.83,7.79188358]
[1759726656121,107.26,230.85,230.83,7.79188358]
[1759726656324,107.26,230.85,230.84,7.79188358]
[1759726657326,115.11,230.85,230.84,7.79188358]
[1759726659622,107.26,230.85,230.84,7.79188358]
[1759726660025,107.26,230.85,230.81,3.8976]
[1759726660227,107.26,230.85,230.84,7.79188358]
[1759726660826,115.11,230.85,230.84,7.79188358]
[1759726663123,7.85,230.85,230.84,7.79188358]
[1759726663426,56.99,230.85,230.84,7.79188358]
[1759726664129,49.14,230.85,230.84,7.79188358]
[1759726665028,7.85,230.88,230.84,7.79188358]
[1759726665229,7.85,230.87,230.83,3.8973]
[1759726665426,7.85,230.87,230.81,3.8977]
[1759726665625,7.85,230.87,230.85,7.79188358]
[1759726665829,18.04,230.88,230.85,7.79188358]
[1759726666230,7.85,230.87,230.85,7.79188358]
[1759726666632,18.04,230.88,230.85,7.79188358]
[1759726668032,8.03,230.87,230.82,3.8975]
[1759726668332,8.03,230.87,230.83,5.26]
[1759726668529,8.03,230.87,230.86,7.79188358]
[1759726673133,9.27925819,230.87,230.77,10.0963291]
[1759726673433,8.03,230.78,230.71,17.73829676]
[1759726673639,8.03,230.83,230.75,7.79188358]
[1759726673841,1.24925819,230.84,230.78,7.79188358]
[1759726674030,8.03,230.84,230.79,7.79188358]
[1759726674228,82.6,230.88,230.82,7.79188358]
[1759726674536,108.46925819,230.88,230.82,7.79188358]
[1759726674737,115.25,230.87,230.76,5.26]
[1759726675036,8.03,230.84,230.82,7.79188358]
[1759726676036,8.03,230.86,230.82,7.79188358]
[1759726676441,107.22,230.87,230.82,7.79188358]
[1759726677238,5.14585819,230.88,230.82,7.79188358]
[1759726677437,8.03,230.86,230.82,7.79188358]
[1759726678034,107.22,230.87,230.82,7.79188358]
[1759726678336,8.03,230.86,230.82,7.79188358]
[1759726678542,107.22,230.87,230.82,7.79188358]
[1759726678742,8.03,230.86,230.79,3.898]
[1759726678945,107.22,230.87,230.83,7.79188358]
[1759726679135,8.03,230.86,230.83,7.79188358]
[1759726679341,8.03,230.86,230.79,3.898]
[1759726679537,107.22,230.87,230.83,7.79188358]
[1759726679944,8.03,230.86,230.79,3.898]
[1759726680141,8.03,230.86,230.83,7.79188358]
[1759726680443,8.03,230.86,230.79,3.898]
[1759726680743,107.22,230.87,230.83,7.79188358]
[1759726680938,3.8967,230.87,230.83,7.79188358]
[1759726681138,8.03,230.86,230.78,5.26]
[1759726681335,8.03,230.86,230.83,7.79188358]
[1759726681548,111.1167,230.87,230.83,7.79188358]
[1759726681747,111.1167,230.87,230.78,5.26]
[1759726681748,8.03,230.86,230.78,5.26]
[1759726681944,111.1167,230.87,230.83,7.79188358]
[1759726682143,3.8963,230.9,230.83,7.79188358]
[1759726682351,115.25,230.89,230.78,5.26]
[1759726682552,115.25,230.89,230.83,7.79188358]
[1759726683046,107.22,230.88,230.8,9.1579]
[1759726683240,107.22,230.88,230.83,13.05188358]
[1759726683551,8.03,230.87,230.83,13.05188358]
[1759726683751,107.22,230.88,230.83,5.26]
[1759726684044,8.03,230.87,230.83,5.26]
[1759726684250,8.03,230.87,230.78,5.26]
[1759726684446,111.1166,230.88,230.83,7.79188358]
[1759726684648,8.03,230.87,230.83,7.79188358]
[1759726684848,8.03,230.87,230.78,5.26]
[1759726685039,111.1166,230.88,230.83,7.79188358]
[1759726685240,8.03,230.87,230.83,7.79188358]
[1759726685852,111.1166,230.88,230.83,7.79188358]
[1759726686246,8.03,230.87,230.83,7.79188358]
[1759726686547,107.2,230.9,230.86,7.79188358]
[1759726686747,8.03,230.89,230.86,7.79188358]
[1759726686942,107.2,230.9,230.86,7.79188358]
[1759726687146,8.03,230.95,230.87,7.79188358]
[1759726687546,8.03,230.93,230.87,7.79188358]
[1759726687751,11.9259,230.93,230.87,7.79188358]
[1759726688153,2.97008563,230.92,230.87,7.79188358]
[1759726688348,2.97008563,230.91,230.87,7.79188358]
[1759726688548,2.97008563,230.9,230.87,7.79188358]
[1759726688851,2.97008563,230.93,230.87,7.79188358]
[1759726689056,8.03,230.9,230.88,7.79188358]
[1759726689355,2.97008563,230.89,230.83,5.26]
[1759726689557,11.00008563,230.89,230.88,7.79188358]
[1759726689954,11.00008563,230.89,230.83,5.26]
[1759726690149,8.03,230.89,230.88,7.79188358]
[1759726690346,8.03,230.89,230.83,5.26]
[1759726690549,10.99926822,230.89,230.88,7.79188358]
[1759726690950,10.99926822,230.89,230.83,5.26]
[1759726691146,8.03,230.89,230.88,7.79188358]
[1759726691346,10.99911155,230.89,230.88,7.79188358]
[1759726691553,10.99911155,230.89,230.83,5.26]
[1759726691753,8.03,230.89,230.88,7.79188358]
[1759726691945,10.99920732,230.89,230.87,7.79188358]
[1759726692147,8.03,230.89,230.87,7.79188358]
[1759726693260,8.03,230.9,230.87,7.79188358]
[1759726693457,8.03,230.88,230.79,5.26]
[1759726693657,8.03,230.9,230.86,7.79188358]
[1759726693859,2.96839129,230.89,230.86,7.79188358]
[1759726694059,8.03,230.89,230.79,5.26]
[1759726694262,8.03,230.87,230.86,7.79188358]
[1759726694760,8.03,230.87,230.79,5.26]
[1759726694962,8.03,230.87,230.86,7.79188358]
[1759726695259,8.03,230.85,230.84,7.79188358]
[1759726695667,8.03,230.85,230.79,5.26]
[1759726695866,8.03,230.85,230.84,7.79188358]
[1759726696256,8.03,230.85,230.79,5.26]
[1759726696462,8.03,230.85,230.84,7.79188358]
[1759726697069,8.03,230.85,230.79,5.26]
[1759726697269,8.03,230.85,230.84,7.79188358]
[1759726697469,8.03,230.85,230.79,5.26]
[1759726697670,8.03,230.85,230.84,7.79188358]
[1759726697864,8.03,230.85,230.83,7.79188358]
[1759726698173,7.84,230.85,230.83,7.79188358]
[1759726698570,3.897,230.86,230.83,7.79188358]
[1759726698868,7.84,230.83,230.76,5.25]
[1759726699172,11.7369,230.86,230.81,7.79188358]
[1759726699367,11.7369,230.86,230.71,12.90196766]
[1759726699368,110.14815488,230.85,230.82,7.79188358]
[1759726699575,10.80815488,230.84,230.82,7.79188358]
[1759726699873,7.84,230.84,230.78,5.25]
[1759726700071,107.18,230.85,230.82,7.79188358]
[1759726700268,7.84,230.83,230.82,7.79188358]
[1759726700567,7.84,230.83,230.78,5.25]
[1759726700771,7.84,230.83,230.82,7.79188358]
[1759726700966,7.84,230.83,230.77,9.1484]
[1759726701163,7.84,230.83,230.82,7.79188358]
[1759726701364,7.84,230.83,230.77,9.1484]
[1759726701574,7.84,230.83,230.82,7.79188358]
[1759726701774,7.84,230.83,230.77,9.1484]
[1759726702074,7.84,230.83,230.82,7.79188358]
[1759726702474,7.84,230.83,230.77,9.1484]
[1759726702674,7.84,230.83,230.82,7.79188358]
[1759726702874,7.84,230.83,230.77,9.1484]
[1759726703174,7.84,230.83,230.82,7.79188358]
[1759726703378,10.80862669,230.83,230.77,9.1484]
[1759726703577,7.84,230.83,230.82,7.79188358]
[1759726703778,7.84,230.83,230.77,9.1484]
[1759726703779,10.80862669,230.83,230.77,9.1484]
[1759726703970,7.84,230.83,230.77,9.1484]
[1759726704170,7.84,230.83,230.81,7.79188358]
[1759726706675,7.84,230.88,230.82,13.04188358]
[1759726706883,110.1279441,230.87,230.84,7.79188358]
[1759726707081,10.8079441,230.86,230.84,7.79188358]
[1759726707278,2.9679441,230.85,230.81,5.25]
[1759726707478,2.9679441,230.85,230.84,7.79188358]
[1759726707678,2.9679441,230.85,230.8,3.8979]
[1759726707979,2.9679441,230.85,230.84,7.79188358]
[1759726708179,2.9679441,230.85,230.81,5.25]
[1759726708478,2.9679441,230.85,230.84,7.79188358]
[1759726709380,2.9679441,230.85,230.81,5.25]
[1759726709580,2.9679441,230.85,230.84,7.79188358]
[1759726709881,2.9679441,230.85,230.8,3.8979]
[1759726710178,2.9679441,230.85,230.84,7.79188358]
[1759726710377,2.9679441,230.85,230.81,5.25]
[1759726710378,2.9679441,230.85,230.8,3.8979]
[1759726710578,2.9679441,230.85,230.84,7.79188358]
[1759726710779,2.9679441,230.85,230.8,3.8979]
[1759726711280,2.9679441,230.85,230.83,7.79188358]
[1759726711677,2.9679441,230.85,230.83,13.04188358]
[1759726711877,2.9679441,230.85,230.8,3.8979]
[1759726712077,2.9679441,230.85,230.84,13.04188358]
[1759726713582,114.83,230.87,230.84,13.04188358]
[1759726713783,2.9679441,230.86,230.84,13.04188358]
[1759726714381,10.6379441,230.86,230.84,13.04188358]
[1759726714582,7.67,230.86,230.84,13.04188358]
[1759726715486,114.81,230.86,230.84,13.04188358]
[1759726718088,2.96615781,230.85,230.84,13.04188358]
[1759726719281,114.81,230.86,230.84,13.04188358]
[1759726719881,114.81,230.86,230.84,5.25]
[1759726720082,114.81,230.86,230.84,13.04188358]
[1759726720281,114.81,230.86,230.84,7.79188358]
[1759726721583,107.14,230.86,230.84,7.79188358]
[1759726721787,7.67,230.85,230.84,7.79188358]
[1759726724192,10.63529679,230.85,230.84,7.79188358]
[1759726724891,117.75529679,230.85,230.84,7.79188358]
[1759726725093,117.75534694,230.85,230.84,7.79188358]
[1759726725887,113.98234694,230.85,230.81,5.26]
[1759726726089,7.67,230.84,230.77,5.26]
[1759726726390,10.63524852,230.84,230.82,7.79188358]
[1759726726590,7.67,230.84,230.82,7.79188358]
[1759726726982,107.12,230.85,230.82,7.79188358]
[1759726727187,7.67,230.83,230.77,5.26]
[1759726727389,114.77,230.82,230.81,7.79188358]
[1759726728894,107.1,230.82,230.81,13.04188358]
[1759726729195,107.1,230.82,230.81,7.79188358]
[1759726729487,114.64,230.82,230.81,7.79188358]
[1759726736499,7.54,230.8,230.74,5.25]
[1759726736794,114.62,230.79,230.78,7.79188358]
[1759726738501,7.54,230.79,230.78,7.79188358]
[1759726738697,85.98,230.79,230.78,7.79188358]
[1759726739095,114.62,230.79,230.78,7.79188358]
[1759726740703,7.54,230.84,230.78,7.79188358]
[1759726741003,1.95161513,230.88,230.77,1.24888761]
[1759726741004,76.62716212,230.83,230.77,1.24888761]
[1759726741203,99.18,230.83,230.78,5.25]
[1759726741498,99.18,230.83,230.82,7.79188358]
[1759726742193,109.68647895,230.83,230.75,5.25]
[1759726742396,106.72,230.83,230.82,7.79188358]
[1759726742691,109.68621951,230.83,230.82,7.79188358]
[1759726742893,109.68621951,230.83,230.77,5.25]
[1759726743093,106.72,230.83,230.82,7.79188358]
[1759726743292,109.68623709,230.83,230.82,7.79188358]
[1759726743503,109.68623709,230.83,230.77,5.25]
[1759726743808,106.72,230.83,230.82,7.79188358]
[1759726744103,109.68631376,230.83,230.82,7.79188358]
[1759726744298,109.68631376,230.83,230.76,9.1484]
[1759726744497,106.72,230.83,230.82,7.79188358]
[1759726744697,109.68605169,230.83,230.82,7.79188358]
[1759726744897,109.68605169,230.83,230.76,9.1484]
[1759726745098,106.72,230.83,230.82,7.79188358]
[1759726745298,109.68600711,230.83,230.82,7.79188358]
[1759726745603,109.68600711,230.83,230.76,9.1484]
[1759726745799,106.72,230.83,230.82,7.79188358]
[1759726745996,1.24888761,230.85,230.82,13.04188358]
[1759726745997,114.6,230.85,230.82,13.04188358]
[1759726746300,114.6,230.85,230.84,7.79188358]
[1759726746491,117.56476142,230.85,230.84,7.79188358]
[1759726746693,117.56476142,230.85,230.79,5.25]
[1759726746892,114.6,230.85,230.79,5.25]
[1759726747097,7.54,230.84,230.83,7.79188358]
[1759726750001,7.54,230.84,230.8,5.25]
[1759726750305,7.54,230.84,230.83,7.79188358]
[1759726750503,10.50079183,230.84,230.83,7.79188358]
[1759726751502,10.50079183,230.84,230.75,9.1487]
[1759726751698,7.54,230.84,230.81,7.79188358]
[1759726751900,7.54,230.82,230.81,7.79188358]